bitfinex/quotes_BTCUSD_20250109
["timestamp","ask_amount","ask_price","bid_price","bid_amount"]
[1736415482432,0.0010852,93740.0,93739.0,0.50481097]
[1736415482838,0.0010852,93740.0,93739.0,0.5298046]
[1736415483386,0.0010852,93740.0,93739.0,0.5388046]
[1736415483582,0.0010852,93740.0,93739.0,0.5448046]
[1736415483789,0.0010852,93740.0,93739.0,0.47485462]
[1736415484190,0.0010852,93740.0,93739.0,0.71015655]
[1736415484884,0.0010852,93740.0,93739.0,0.75971655]
[1736415485088,0.0010852,93740.0,93739.0,0.60585679]
[1736415485291,0.1976852,93740.0,93739.0,0.60585679]
[1736415485468,0.1976852,93740.0,93739.0,0.59985679]
[1736415485668,0.1976852,93740.0,93739.0,0.36455486]
[1736415485844,0.1976852,93740.0,93739.0,0.36155486]
[1736415486243,0.1976852,93740.0,93739.0,0.01685002]
[1736415486442,0.1976852,93740.0,93739.0,0.009]
[1736415486662,0.1976852,93740.0,93739.0,0.004]
[1736415486663,0.1510852,93740.0,93739.0,0.004]
[1736415486838,0.1510852,93740.0,93739.0,0.10829976]
[1736415487039,0.1510852,93740.0,93739.0,0.10429976]
[1736415488007,0.1510852,93740.0,93739.0,0.11029976]
[1736415488308,0.1510852,93740.0,93739.0,0.10429976]
[1736415488676,0.1510852,93740.0,93739.0,0.11329976]
[1736415489083,0.213354,93741.0,93739.0,0.11329976]
[1736415489290,0.213354,93741.0,93740.0,0.10429976]
[1736415490113,0.213354,93741.0,93740.0,0.09414208]
[1736415490902,0.213354,93741.0,93739.0,0.013]
[1736415491277,0.213354,93741.0,93739.0,0.004]
[1736415491456,0.213354,93741.0,93739.0,0.013]
[1736415491654,0.213354,93741.0,93739.0,0.009]
[1736415491833,0.213356,93740.0,93737.0,4.0]
[1736415492037,0.213356,93740.0,93739.0,0.006]
[1736415492240,0.15,93744.0,93739.0,0.006]
[1736415493015,0.213356,93740.0,93737.0,4.0]
[1736415493192,0.426712,93740.0,93737.0,4.0]
[1736415493387,0.213356,93740.0,93739.0,0.004]
[1736415493798,0.213349,93743.0,93739.0,0.21259952]
[1736415493999,0.213349,93743.0,93740.0,0.10429976]
[1736415494205,0.426698,93743.0,93740.0,0.10429976]
[1736415495400,0.426698,93743.0,93740.0,0.10929976]
[1736415495595,0.426698,93743.0,93740.0,0.10429976]
[1736415495937,0.426698,93743.0,93740.0,0.10929976]
[1736415496141,0.426698,93743.0,93740.0,0.11629976]
[1736415496576,0.426698,93743.0,93740.0,0.11129976]
[1736415496928,0.294153,93741.0,93740.0,0.011]
[1736415497141,0.444153,93741.0,93740.0,0.011]
[1736415497343,0.444153,93741.0,93740.0,0.004]
[1736415497552,0.363353,93741.0,93740.0,0.004]
[1736415497753,0.213353,93741.0,93740.0,0.011]
[1736415497955,0.213353,93741.0,93740.0,0.10829976]
[1736415498368,0.213353,93741.0,93740.0,0.10729976]
[1736415498773,0.213353,93741.0,93740.0,0.10429976]
[1736415498981,0.213353,93741.0,93740.0,0.12020115]
[1736415499209,0.213353,93741.0,93740.0,0.12420115]
[1736415499433,0.213353,93741.0,93740.0,0.11620115]
[1736415499656,0.213353,93741.0,93740.0,0.11220115]
[1736415500032,0.213353,93741.0,93740.0,0.11620115]
[1736415500951,0.213353,93741.0,93740.0,0.12420115]
[1736415501251,0.213353,93741.0,93740.0,0.11620115]
[1736415501478,0.213353,93741.0,93740.0,0.11220115]
[1736415501712,0.213353,93741.0,93740.0,0.12020115]
[1736415501924,0.02688373,93744.0,93740.0,0.11620115]
[1736415502097,0.02688373,93744.0,93741.0,0.10429976]
[1736415502309,8.52e-05,93745.0,93742.0,0.03289947]
[1736415502553,0.02803893,93745.0,93743.0,0.13719923]
[1736415502787,8.52e-05,93745.0,93744.0,0.03289947]
[1736415503028,8.52e-05,93745.0,93744.0,0.13719923]
[1736415504525,8.52e-05,93745.0,93744.0,0.10429976]
[1736415504954,8.52e-05,93745.0,93744.0,0.10929976]
[1736415505391,8.52e-05,93745.0,93744.0,0.11829976]
[1736415505602,8.52e-05,93745.0,93744.0,0.14621259]
[1736415505806,8.52e-05,93745.0,93744.0,0.14221259]
[1736415506397,0.02710815,93746.0,93744.0,0.63187442]
[1736415506568,0.02710815,93746.0,93745.0,0.13721259]
[1736415506913,0.02710815,93746.0,93745.0,0.14511382]
[1736415507515,0.02710815,93746.0,93745.0,0.14511862]
[1736415507934,0.02710815,93746.0,93745.0,0.11220099]
[1736415508250,0.02710815,93746.0,93745.0,0.60211456]
[1736415508443,0.02710815,93746.0,93745.0,0.61111456]
[1736415508847,0.02710815,93746.0,93745.0,0.60711456]
[1736415509078,0.02710815,93746.0,93745.0,0.61611456]
[1736415509484,0.02710815,93746.0,93745.0,0.46990143]
[1736415509659,0.02710815,93746.0,93745.0,0.4670002]
[1736415510487,0.02710815,93746.0,93745.0,0.4580002]
[1736415510693,0.02710815,93746.0,93745.0,0.35370044]
[1736415510911,0.02710815,93746.0,93745.0,0.36270044]
[1736415511085,0.0318382,93746.0,93745.0,0.35370044]
[1736415511458,0.0318382,93746.0,93745.0,0.35770044]
[1736415511663,0.0318382,93746.0,93734.0,0.05856]
[1736415511664,0.213344,93745.0,93743.0,0.1419414]
[1736415512105,0.00500291,93744.0,93743.0,0.1419414]
[1736415512520,0.213349,93743.0,93741.0,0.18925521]
[1736415512747,0.213349,93743.0,93741.0,0.29355497]
[1736415512948,0.00500288,93742.0,93741.0,0.29355497]
[1736415513209,0.00500288,93742.0,93741.0,0.10429976]
[1736415513907,0.00500288,93742.0,93741.0,0.69082943]
[1736415514237,0.00500288,93742.0,93741.0,0.46299726]
[1736415514674,0.00500288,93742.0,93741.0,0.45899726]
[1736415515045,0.00500288,93742.0,93741.0,0.46299726]
[1736415515256,0.00500288,93742.0,93741.0,0.45399726]
[1736415515459,0.00500288,93742.0,93741.0,0.45999726]
[1736415515662,0.00500288,93742.0,93741.0,0.46899726]
[1736415515859,0.00500288,93742.0,93741.0,0.46299726]
[1736415516425,0.00500288,93742.0,93741.0,0.46799726]
[1736415517020,0.00500288,93742.0,93741.0,0.45899726]
[1736415517192,0.00500288,93742.0,93741.0,0.46799726]
[1736415517378,0.00500288,93742.0,93741.0,0.3636975]
[1736415517582,0.00500288,93742.0,93741.0,0.3496975]
[1736415517782,0.00500288,93742.0,93741.0,0.3586975]
[1736415517963,0.00500288,93742.0,93741.0,0.3636975]
[1736415518163,0.00500288,93742.0,93741.0,0.3546975]
[1736415518367,0.00500288,93742.0,93741.0,0.3586975]
[1736415518831,0.00500288,93742.0,93741.0,0.3536975]
[1736415519208,0.00500288,93742.0,93741.0,0.53934392]
[1736415519614,0.00500288,93742.0,93741.0,0.59175552]
[1736415520353,0.00500288,93742.0,93741.0,0.59675552]
[1736415520966,0.00500288,93742.0,93741.0,0.59175552]
[1736415521299,0.00500288,93742.0,93741.0,0.60075552]
[1736415521589,0.00500288,93742.0,93741.0,0.3496975]
[1736415521833,0.00500288,93742.0,93741.0,0.3546975]
[1736415522037,0.00500288,93742.0,93741.0,0.3606975]
[1736415522471,0.00500288,93742.0,93741.0,0.45999726]
[1736415522685,0.02710815,93746.0,93741.0,0.76636038]
[1736415522865,0.02710815,93746.0,93742.0,0.10429976]
[1736415523060,0.00495629,93745.0,93742.0,0.10429976]
[1736415524054,0.00495629,93745.0,93743.0,0.3496975]
[1736415524254,0.00495629,93745.0,93744.0,0.10429976]
[1736415524783,0.00595629,93745.0,93744.0,0.53059726]
[1736415525148,0.00495629,93745.0,93744.0,0.53059726]
[1736415525552,0.00495629,93745.0,93744.0,0.63351971]
[1736415525873,0.02710815,93746.0,93744.0,0.63351971]
[1736415526075,0.00495629,93745.0,93744.0,0.63851971]
[1736415526276,0.02710815,93746.0,93744.0,0.63851971]
[1736415526510,0.02710815,93746.0,93745.0,0.3496975]
[1736415526678,0.02710815,93746.0,93745.0,0.45399726]
[1736415527670,0.02710815,93746.0,93745.0,0.45799726]
[1736415528066,0.02710815,93746.0,93745.0,0.45399726]
[1736415528468,0.02710815,93746.0,93745.0,0.46499726]
[1736415528919,0.02710815,93746.0,93745.0,0.45999726]
[1736415529429,0.02710815,93746.0,93745.0,0.4949172]
[1736415529850,0.02710815,93746.0,93745.0,0.4929172]
[1736415530066,0.02710815,93746.0,93745.0,0.4869172]
[1736415530344,0.02710815,93746.0,93745.0,0.50181772]
[1736415530524,0.02710815,93746.0,93745.0,0.99153756]
[1736415530778,0.05,93752.0,93745.0,0.95461762]
[1736415530979,0.05014957,93752.0,93746.0,0.10429976]
[1736415531484,0.077883,93752.0,93746.0,0.10429976]
[1736415531725,0.077883,93752.0,93747.0,0.3496975]
[1736415531901,0.077883,93752.0,93748.0,0.10429976]
[1736415532130,0.00495645,93751.0,93748.0,0.10429976]
[1736415532336,0.077883,93752.0,93748.0,0.45399726]
[1736415532484,0.00499005,93750.0,93748.0,0.45399726]
[1736415532654,0.077883,93752.0,93748.0,0.45399726]
[1736415532857,0.00499007,93751.0,93749.0,0.35759802]
[1736415533080,0.077883,93752.0,93750.0,0.10429976]
[1736415533944,0.077883,93752.0,93750.0,0.45399726]
[1736415534135,0.00499007,93751.0,93750.0,0.45399726]
[1736415534338,0.077883,93752.0,93750.0,0.45399726]
[1736415534542,0.15,93766.0,93751.0,0.3496975]
[1736415534839,4.983e-05,93761.0,93752.0,0.10429976]
[1736415535049,0.213316,93758.0,93752.0,0.15555149]
[1736415535275,0.21322267,93758.0,93752.0,0.10429976]
[1736415535944,0.21322267,93758.0,93756.0,0.14205941]
[1736415536108,0.21322267,93758.0,93757.0,0.10429976]
[1736415537761,0.20822267,93758.0,93757.0,0.11229976]
[1736415538087,0.20822267,93758.0,93757.0,0.10429976]
[1736415538284,0.20822267,93758.0,93757.0,0.11229976]
[1736415538628,0.20822267,93758.0,93757.0,0.10829976]
[1736415539827,0.20822267,93758.0,93757.0,0.10429976]
[1736415540000,0.20822267,93758.0,93757.0,0.24635917]
[1736415540160,0.23556796,93758.0,93757.0,0.25435917]
[1736415540363,0.23556796,93758.0,93757.0,0.24635917]
[1736415540772,0.23556796,93758.0,93757.0,0.11229976]
[1736415541195,0.23556796,93758.0,93757.0,0.11729976]
[1736415541548,0.23556796,93758.0,93757.0,0.10429976]
[1736415541752,0.23556796,93758.0,93757.0,0.11229976]
[1736415542018,0.23556796,93758.0,93757.0,0.11629976]
[1736415542581,0.23556796,93758.0,93757.0,0.11229976]
[1736415542789,0.23556796,93758.0,93757.0,0.16293057]
[1736415542997,0.23556796,93758.0,93757.0,0.16693057]
[1736415543204,0.23556796,93758.0,93757.0,0.23893057]
[1736415543434,0.02734529,93758.0,93757.0,0.23893057]
[1736415543637,4.983e-05,93761.0,93757.0,0.29253057]
[1736415543812,4.983e-05,93761.0,93758.0,0.049311]
[1736415544017,4.983e-05,93761.0,93760.0,0.18429976]
[1736415544494,4.983e-05,93761.0,93760.0,0.1853661]
[1736415545032,4.983e-05,93761.0,93760.0,0.61522978]
[1736415545235,0.00041144,93769.0,93768.0,0.337992]
[1736415545433,0.00041144,93769.0,93768.0,0.5794552]
[1736415545934,0.00041144,93769.0,93768.0,0.8294552]
[1736415546483,0.00041144,93769.0,93768.0,1.68907108]
[1736415546689,8.52e-05,93781.0,93768.0,1.68907108]
[1736415546690,8.52e-05,93781.0,93768.0,1.12147932]
[1736415546898,8.52e-05,93781.0,93769.0,0.16277976]
[1736415547215,8.52e-05,93781.0,93777.0,0.10429976]
[1736415547413,8.52e-05,93781.0,93777.0,0.18366587]
[1736415547617,8.52e-05,93781.0,93777.0,0.18366591]
[1736415547800,8.52e-05,93781.0,93777.0,0.28689952]
[1736415548200,8.52e-05,93781.0,93777.0,0.69502357]
[1736415548485,8.52e-05,93781.0,93777.0,0.59072381]
[1736415548675,8.52e-05,93781.0,93777.0,0.59972381]
[1736415548877,8.52e-05,93781.0,93777.0,0.60772381]
[1736415549286,8.52e-05,93781.0,93777.0,0.59972381]
[1736415549559,8.52e-05,93781.0,93777.0,0.70402357]
[1736415549774,8.52e-05,93781.0,93777.0,0.71102357]
[1736415550005,8.52e-05,93781.0,93777.0,0.70988855]
[1736415550425,8.52e-05,93781.0,93777.0,0.71888855]
[1736415550626,8.52e-05,93781.0,93777.0,0.61458879]
[1736415550758,8.52e-05,93781.0,93777.0,0.60558879]
[1736415550942,8.52e-05,93781.0,93777.0,0.6403454]
[1736415551142,8.52e-05,93781.0,93777.0,0.60758879]
[1736415551341,8.52e-05,93781.0,93777.0,0.71988855]
[1736415551788,8.52e-05,93781.0,93778.0,0.426537]
[1736415551979,8.52e-05,93781.0,93780.0,0.10429976]
[1736415552583,8.52e-05,93784.0,93780.0,0.10429976]
[1736415552584,4e-07,93784.0,93783.0,0.689758]
[1736415552840,8.51e-05,93790.0,93789.0,0.589744]
[1736415552995,8.51e-05,93790.0,93789.0,0.86802714]
[1736415553159,0.00023463,93790.0,93789.0,0.83530014]
[1736415553395,0.00023463,93790.0,93789.0,0.86799527]
[1736415554058,0.00023463,93790.0,93789.0,1.11763932]
[1736415554263,5.0,93798.0,93797.0,0.213226]
[1736415554574,5.0,93798.0,93797.0,0.31752576]
[1736415555218,5.0,93798.0,93797.0,0.66716981]
[1736415556185,5.0,93798.0,93797.0,0.67316981]
[1736415556807,5.0,93798.0,93797.0,0.68216981]
[1736415557002,5.0,93798.0,93797.0,0.46894381]
[1736415557426,4.46593342,93798.0,93797.0,0.52738381]
[1736415557749,4.46593342,93798.0,93797.0,0.46894381]
[1736415558047,4.46593342,93798.0,93797.0,0.27178592]
[1736415558249,4.46593342,93798.0,93797.0,0.25678592]
[1736415558493,4.46593342,93798.0,93797.0,0.39107144]
[1736415558745,4.46593342,93798.0,93797.0,0.25573976]
[1736415559213,4.46593342,93798.0,93797.0,0.34378592]
[1736415559473,4.46593342,93798.0,93797.0,0.34978592]
[1736415559980,4.46593342,93798.0,93797.0,0.25573976]
[1736415560250,4.46593342,93798.0,93797.0,0.24673976]
[1736415560468,4.46593342,93798.0,93797.0,0.25573976]
[1736415560819,4.41252609,93798.0,93797.0,0.25573976]
[1736415561543,4.41252609,93798.0,93797.0,0.36003952]
[1736415561917,4.41252609,93798.0,93797.0,0.50110876]
[1736415562118,4.41252609,93798.0,93797.0,0.54266876]
[1736415562322,4.41252609,93798.0,93797.0,0.75110876]
[1736415562502,4.41252609,93798.0,93797.0,0.65110876]
[1736415563390,4.41252609,93798.0,93797.0,0.51003952]
[1736415563536,4.41252609,93798.0,93797.0,0.51787586]
[1736415563948,4.41252609,93798.0,93797.0,0.2051361]
[1736415564158,4.41252609,93798.0,93797.0,0.2635761]
[1736415564872,4.41252609,93798.0,93797.0,0.25573976]
[1736415567214,4.41252609,93798.0,93797.0,0.26357803]
[1736415567415,4.33241582,93798.0,93797.0,0.26357803]
[1736415567768,4.33241582,93798.0,93797.0,0.49869343]
[1736415568982,3.80087022,93798.0,93797.0,0.26357803]
[1736415571389,3.80087022,93798.0,93797.0,0.27612718]
[1736415572370,3.80087022,93798.0,93797.0,0.46401529]
[1736415572801,3.80087022,93798.0,93797.0,0.27612718]
[1736415573230,3.80087022,93798.0,93797.0,0.21768718]
[1736415573430,3.80087022,93798.0,93797.0,0.30882068]
[1736415573608,3.80087022,93798.0,93797.0,0.38042694]
[1736415573824,3.80087022,93798.0,93797.0,0.4131217]
[1736415576284,3.80087022,93798.0,93797.0,0.23078194]
[1736415576487,3.80087022,93798.0,93797.0,0.46561093]
[1736415577266,3.80087022,93798.0,93797.0,0.23078194]
[1736415578056,3.80087022,93798.0,93797.0,0.46561093]
[1736415578504,3.80087022,93798.0,93797.0,0.23078194]
[1736415579814,3.80087022,93798.0,93797.0,0.24046456]
[1736415580319,3.26682491,93798.0,93797.0,0.24646456]
[1736415580519,3.26682491,93798.0,93797.0,0.23746456]
[1736415580759,3.26682491,93798.0,93797.0,0.24646456]
[1736415582202,3.26682491,93798.0,93797.0,0.18806456]
[1736415582405,3.26682491,93798.0,93797.0,0.24646456]
[1736415583101,3.26282491,93798.0,93797.0,0.24646456]
[1736415583833,3.26282491,93798.0,93797.0,0.38770033]
[1736415584452,3.26282491,93798.0,93797.0,0.24646456]
[1736415585068,3.26282491,93798.0,93797.0,0.23078194]
[1736415585265,3.26282491,93798.0,93797.0,0.37201771]
[1736415585867,3.26282491,93798.0,93797.0,0.23078194]
[1736415586804,8.52e-05,93801.0,93798.0,0.95039909]
[1736415587007,8.52e-05,93801.0,93798.0,1.05469885]
[1736415587370,8.52e-05,93801.0,93798.0,1.15899861]
[1736415587591,8.52e-05,93801.0,93798.0,1.05469885]
[1736415587766,0.0458851,93799.0,93798.0,0.84147485]
[1736415587969,0.0458851,93799.0,93798.0,0.85190819]
[1736415587970,0.1285851,93799.0,93798.0,0.85190819]
[1736415588577,0.1285851,93799.0,93798.0,0.86090819]
[1736415588875,0.1285851,93799.0,93798.0,0.75756251]
[1736415589059,0.1285851,93799.0,93798.0,0.77256251]
[1736415589271,0.1285851,93799.0,93798.0,0.75217509]
[1736415589479,0.1285851,93799.0,93798.0,0.73717509]
[1736415589679,0.1285851,93799.0,93798.0,0.75752129]
[1736415589888,0.1285851,93799.0,93798.0,0.74117509]
[1736415590086,0.1285851,93799.0,93798.0,0.73917509]
[1736415590541,0.16274457,93799.0,93798.0,0.73717509]
[1736415590793,0.16274457,93799.0,93798.0,0.73917509]
[1736415591161,0.16274457,93799.0,93798.0,0.84347485]
[1736415591503,0.16274457,93799.0,93798.0,0.84547485]
[1736415591806,0.16274457,93799.0,93798.0,0.84347485]
[1736415592427,0.16274457,93799.0,93798.0,0.84547485]
[1736415593040,0.16274457,93799.0,93798.0,0.84347485]
[1736415593241,0.16274457,93799.0,93798.0,0.84547485]
[1736415593492,0.16274457,93799.0,93798.0,0.84347485]
[1736415593879,0.16274457,93799.0,93798.0,0.73717509]
[1736415594084,0.23167984,93799.0,93798.0,0.73917509]
[1736415594284,0.71174457,93799.0,93798.0,0.72027209]
[1736415594491,0.43774457,93799.0,93798.0,0.72027209]
[1736415595169,0.43774457,93799.0,93798.0,0.72127209]
[1736415595369,0.43774457,93799.0,93798.0,0.72027209]
[1736415595498,0.43774457,93799.0,93798.0,0.71827209]
[1736415595706,0.53874457,93799.0,93798.0,0.72027209]
[1736415596135,0.53874457,93799.0,93798.0,0.71827209]
[1736415597166,0.63527984,93799.0,93798.0,0.71827209]
[1736415597367,0.53874457,93799.0,93798.0,0.71827209]
[1736415598210,0.43874457,93799.0,93798.0,0.71827209]
[1736415598621,0.31374457,93799.0,93798.0,0.71827209]
[1736415599159,0.31361626,93799.0,93798.0,0.71827209]
[1736415605035,0.18515947,93799.0,93798.0,0.71827209]
[1736415605307,0.03515947,93799.0,93798.0,0.7900993]
[1736415605531,0.03515947,93799.0,93798.0,0.89439906]
[1736415606248,0.03515947,93799.0,93798.0,1.03039906]
[1736415606433,0.001,93799.0,93798.0,1.03039906]
[1736415606644,8.991e-05,93800.0,93798.0,1.03039906]
[1736415606870,8.991e-05,93800.0,93799.0,0.20859952]
[1736415607110,8.991e-05,93800.0,93799.0,0.10429976]
[1736415608889,0.213221,93799.0,93798.0,0.71827209]
[1736415609106,0.259321,93799.0,93798.0,0.71827209]
[1736415609525,0.409321,93799.0,93798.0,0.71827209]
[1736415610091,4.025321,93799.0,93798.0,0.71827209]
[1736415610303,2.65572076,93799.0,93798.0,0.71827209]
[1736415610640,0.59172076,93799.0,93798.0,0.71827209]
[1736415610872,3.89972076,93799.0,93798.0,0.71827209]
[1736415611067,3.29072076,93799.0,93798.0,0.71827209]
[1736415611385,0.487421,93799.0,93798.0,0.71927209]
[1736415611757,0.486421,93799.0,93798.0,0.71827209]
[1736415611959,0.594421,93799.0,93798.0,0.71827209]
[1736415613322,0.595421,93799.0,93798.0,0.71927209]
[1736415613525,0.594421,93799.0,93798.0,0.71827209]
[1736415614350,0.69972076,93799.0,93798.0,0.71927209]
[1736415614796,0.595421,93799.0,93798.0,0.71927209]
[1736415615008,0.594421,93799.0,93798.0,0.71827209]
[1736415616365,0.595421,93799.0,93798.0,0.71927209]
[1736415616481,0.594421,93799.0,93798.0,0.71827209]
[1736415616953,0.595421,93799.0,93798.0,0.71927209]
[1736415618319,0.9021072,93799.0,93798.0,0.53491216]
[1736415618510,0.89995483,93799.0,93798.0,0.52191216]
[1736415618711,0.89972076,93799.0,93798.0,0.52191216]
[1736415618911,0.89972076,93799.0,93798.0,0.50191216]
[1736415619132,0.89972076,93799.0,93798.0,0.49243855]
[1736415619577,0.795421,93799.0,93798.0,0.49243855]
[1736415620143,0.838157,93799.0,93798.0,0.49243855]
[1736415621474,0.838157,93799.0,93798.0,0.4676852]
[1736415621947,0.738157,93799.0,93798.0,0.4676852]
[1736415622169,0.838157,93799.0,93798.0,0.4676852]
[1736415622534,0.638157,93799.0,93798.0,0.4676852]
[1736415622776,0.514957,93799.0,93798.0,0.4676852]
[1736415623178,0.472221,93799.0,93798.0,0.4676852]
[1736415624711,0.471221,93799.0,93798.0,0.4666852]
[1736415624915,0.57552076,93799.0,93798.0,0.4666852]
[1736415625060,0.57652076,93799.0,93798.0,0.4676852]
[1736415626304,0.57552076,93799.0,93798.0,0.4666852]
[1736415626710,0.58252076,93799.0,93798.0,0.4676852]
[1736415626904,0.57552076,93799.0,93798.0,0.4666852]
[1736415627318,0.58352076,93799.0,93798.0,0.4676852]
[1736415627518,0.58452076,93799.0,93798.0,0.4676852]
[1736415628993,0.480221,93799.0,93798.0,0.4676852]
[1736415630537,0.372221,93799.0,93798.0,0.4676852]
[1736415630984,0.222221,93799.0,93798.0,0.4676852]
[1736415631344,0.372221,93799.0,93798.0,0.4676852]
[1736415631551,0.371221,93799.0,93798.0,0.4676852]
[1736415632689,0.363221,93799.0,93798.0,0.4666852]
[1736415632875,0.371221,93799.0,93798.0,0.4676852]
[1736415634104,0.008,93799.0,93798.0,0.61878496]
[1736415635450,0.008,93799.0,93798.0,0.7602151]
[1736415635853,0.21330991,93800.0,93798.0,0.7592151]
[1736415636189,0.21330991,93800.0,93799.0,0.10429976]
[1736415638136,0.21330991,93800.0,93799.0,0.10529976]
[1736415638284,8.991e-05,93800.0,93799.0,0.18049976]
[1736415639045,8.991e-05,93800.0,93799.0,0.3219299]
[1736415639234,8.991e-05,93800.0,93799.0,0.3209299]
[1736415639443,8.991e-05,93800.0,93799.0,0.17949976]
[1736415639645,8.991e-05,93800.0,93799.0,0.18049976]
[1736415640055,8.991e-05,93800.0,93799.0,0.17949976]
[1736415640193,8.991e-05,93800.0,93799.0,0.18049976]
[1736415640403,8.991e-05,93800.0,93799.0,0.18149976]
[1736415641012,8.991e-05,93800.0,93799.0,0.18049976]
[1736415641551,8.991e-05,93800.0,93799.0,0.18149976]
[1736415644181,8.991e-05,93800.0,93799.0,0.32306039]
[1736415645210,8.991e-05,93800.0,93799.0,0.38138039]
[1736415645691,8.991e-05,93800.0,93799.0,0.42805991]
[1736415646033,8.991e-05,93800.0,93799.0,0.23981976]
[1736415646728,8.991e-05,93800.0,93799.0,0.23781976]
[1736415647072,8.991e-05,93800.0,93799.0,0.23881976]
[1736415647941,8.991e-05,93800.0,93799.0,0.43451976]
[1736415648159,0.213196,93811.0,93799.0,0.43451976]
[1736415648160,0.0493,93861.0,93833.0,0.0819]
[1736415648363,0.21314,93835.0,93834.0,0.16261976]
[1736415648801,0.21314,93835.0,93834.0,0.10429976]
[1736415649008,0.0639403,93835.0,93816.0,0.04974678]
[1736415649213,0.213174,93820.0,93817.0,0.10429976]
[1736415649419,0.213174,93820.0,93819.0,0.23553243]
[1736415649621,0.213174,93820.0,93819.0,0.33983219]
[1736415649752,0.213174,93820.0,93819.0,0.38957897]
[1736415649956,0.213174,93820.0,93819.0,0.33983219]
[1736415650163,0.213174,93820.0,93819.0,0.10429976]
[1736415650859,0.21367233,93820.0,93819.0,0.10429976]
[1736415651060,0.21667233,93820.0,93819.0,0.15404654]
[1736415651486,0.21667233,93820.0,93819.0,0.10429976]
[1736415651684,0.21667233,93820.0,93819.0,0.15404654]
[1736415652267,0.00349833,93820.0,93819.0,0.15404654]
[1736415652695,0.03366073,93820.0,93819.0,0.15404654]
[1736415652900,0.00349833,93820.0,93819.0,0.15404654]
[1736415655755,0.00349833,93820.0,93819.0,0.10429976]
[1736415657040,0.07074078,93820.0,93819.0,0.15404654]
[1736415657655,0.00349833,93820.0,93819.0,0.15404654]
[1736415660225,0.00049833,93820.0,93819.0,0.15604654]
[1736415660677,0.00049833,93820.0,93819.0,0.15904654]
[1736415660877,0.00049833,93820.0,93819.0,0.15404654]
[1736415661185,0.00049833,93820.0,93819.0,0.15504654]
[1736415661404,0.00149833,93820.0,93819.0,0.15504654]
[1736415661622,0.00049833,93820.0,93819.0,0.15404654]
[1736415662024,0.00049833,93820.0,93819.0,0.15504654]
[1736415662937,0.00049833,93820.0,93819.0,0.36822254]
[1736415663149,0.00049833,93820.0,93819.0,0.4701279]
[1736415663553,0.00049833,93820.0,93819.0,0.56536392]
[1736415663779,0.00049833,93820.0,93819.0,0.46245856]
[1736415664004,0.00049833,93820.0,93819.0,0.46145856]
[1736415664207,0.00049833,93820.0,93819.0,0.36722254]
[1736415664411,0.00049833,93820.0,93819.0,0.37422254]
[1736415665432,0.00049833,93820.0,93819.0,0.3820875]
[1736415666371,0.00049833,93820.0,93819.0,0.67185931]
[1736415666542,0.00049833,93820.0,93819.0,0.67485931]
[1736415666755,0.00049833,93820.0,93819.0,0.56655955]
[1736415666958,0.00049833,93820.0,93819.0,0.69925955]
[1736415667161,0.00049833,93820.0,93819.0,0.5107875]
[1736415667606,0.00049833,93820.0,93819.0,0.54352792]
[1736415667794,0.00049833,93820.0,93819.0,0.88336011]
[1736415668131,0.0453,93854.0,93819.0,0.89593953]
[1736415668337,0.213093,93856.0,93847.0,0.04974678]
[1736415668338,0.21325249,93852.0,93847.0,0.04974678]
[1736415668538,0.213109,93849.0,93848.0,0.10429976]
[1736415668965,0.213128,93840.0,93839.0,0.1438128]
[1736415669170,0.213128,93840.0,93839.0,0.24811256]
[1736415669364,0.213125,93842.0,93839.0,0.24811256]
[1736415669658,0.213109,93849.0,93839.0,0.24811256]
[1736415669659,0.213118,93845.0,93840.0,0.10429976]
[1736415669860,0.213118,93845.0,93839.0,0.1438128]
[1736415669861,0.02937759,93852.0,93851.0,0.04974678]
[1736415670065,0.03737759,93852.0,93851.0,0.15404654]
[1736415670464,0.02937759,93852.0,93851.0,0.15404654]
[1736415671187,0.02937759,93852.0,93851.0,0.29505892]
[1736415671437,0.02937759,93852.0,93851.0,0.37605892]
[1736415671614,0.02937759,93852.0,93851.0,0.30459214]
[1736415671819,0.02937759,93852.0,93851.0,0.10529976]
[1736415671820,0.05363317,93852.0,93851.0,0.10529976]
[1736415672024,0.02937759,93852.0,93851.0,0.10529976]
[1736415672755,0.02937759,93852.0,93851.0,0.10429976]
[1736415672909,0.02937759,93852.0,93851.0,0.15404654]
[1736415673121,0.02937759,93852.0,93851.0,0.15504654]
[1736415673331,0.03337759,93852.0,93851.0,0.29606617]
[1736415673508,0.02937759,93852.0,93851.0,0.29506617]
[1736415673951,0.03137759,93852.0,93851.0,0.29606617]
[1736415674154,0.02937759,93852.0,93851.0,0.29606617]
[1736415674334,0.02937759,93852.0,93851.0,0.29506617]
[1736415674549,0.03237759,93852.0,93851.0,0.29506617]
[1736415674751,0.02937759,93852.0,93851.0,0.15504654]
[1736415675391,0.00014949,93852.0,93851.0,0.15504654]
[1736415675596,0.00014949,93852.0,93851.0,0.18876245]
[1736415676340,0.00114949,93852.0,93851.0,0.373699]
[1736415676559,0.00014949,93852.0,93851.0,0.65483172]
[1736415676767,0.00014949,93852.0,93851.0,0.65683172]
[1736415676970,0.02307331,93862.0,93852.0,0.213101]
[1736415677173,0.00020194,93858.0,93857.0,0.39888976]
[1736415677347,0.00020194,93858.0,93857.0,0.43154031]
[1736415677557,0.00020194,93858.0,93857.0,0.46920195]
[1736415677782,0.00020194,93858.0,93857.0,0.51894873]
[1736415679133,0.213044,93878.0,93857.0,0.48629818]
[1736415679338,0.213067,93868.0,93864.0,0.15404654]
[1736415679585,0.5000852,93893.0,93870.0,0.04974678]
[1736415679782,0.213051,93874.0,93871.0,0.10429976]
[1736415680387,0.213051,93874.0,93871.0,0.24509472]
[1736415680715,0.213051,93874.0,93871.0,0.2948415]
[1736415681311,0.426104,93874.0,93871.0,0.2948415]
[1736415681520,0.44986998,93874.0,93871.0,0.24509472]
[1736415681688,0.19568454,93874.0,93871.0,0.24509472]
[1736415682364,0.40864428,93874.0,93871.0,0.24509472]
[1736415682565,0.40864428,93874.0,93871.0,0.10429976]
[1736415682743,0.41664428,93874.0,93871.0,0.10529976]
[1736415686690,0.41664428,93874.0,93872.0,0.0811]
[1736415686912,0.20359128,93874.0,93873.0,0.10429976]
[1736415687194,0.03176598,93874.0,93873.0,0.15404654]
[1736415687936,0.03176598,93874.0,93873.0,0.59819954]
[1736415688122,0.008,93874.0,93873.0,0.3759415]
[1736415688729,0.008,93874.0,93873.0,0.2948415]
[1736415688942,0.00053056,93876.0,93873.0,0.38870565]
[1736415689261,0.008,93874.0,93873.0,0.38970565]
[1736415689613,0.00053056,93876.0,93873.0,0.15404654]
[1736415690000,0.00053056,93876.0,93873.0,0.3426636]
[1736415690223,0.00053056,93876.0,93875.0,0.04974678]
[1736415690542,0.00053056,93876.0,93875.0,0.21228654]
[1736415691333,0.00053056,93876.0,93875.0,0.35292986]
[1736415691934,0.213031,93883.0,93875.0,0.35292986]
[1736415692144,0.02367259,93883.0,93876.0,0.10429976]
[1736415692315,0.213044,93877.0,93875.0,0.14164332]